Cogmind - Beta 16 @@@ ROGUE MODE // 2025.10.22 @ 21:25:28 Player: gorb Result: Destroyed by Y-45 Defender with Beam Rifle Performance ------------- Evolutions (2) 1000 Regions Visited (4) 800 Robots Destroyed (21) 105 Value Destroyed (539) 539 Prototype IDs (1) 20 Alien Tech Used (0) 0 Bonus (0) 0 TOTAL SCORE: 2464 Bonus ------- None Cogmind --------- Core Integrity 0/550 Matter 276/300 Energy 99/100 System Corruption 0% Temperature Cool (9) Movement Core (50) Location -8/Materials Parts ------- > --- POWER (1) -------- (None) > --- PROPULSION (4) --- (None) > --- UTILITY (3) ------ (None) > --- WEAPON (3) ------- (None) > --- INVENTORY (5) ---- Large Matter Pod (100) Utility Shielding Medium Laser Peak State ------------ > --- POWER ------------ Ion Engine > --- PROPULSION ------- Wheel Compact Wheel > --- UTILITY ---------- Small Storage Unit Advanced Weight Redist. System Signal Interpreter > --- WEAPON ----------- Medium Laser Beam Rifle Advanced Beam Cannon > --- INVENTORY -------- Large Matter Pod Utility Shielding Medium Laser [Rating: 14] Favorites ----------- Power Light Ion Engine Engine Light Ion Engine Propulsion Aluminum Leg Leg Aluminum Leg Wheel Wheel Flight Unit Flight Unit Utility Small Storage Unit Device Advanced Weight Redist. System Storage Small Storage Unit Processor Signal Interpreter Weapon Light Assault Rifle Energy Gun Medium Laser Energy Cannon Advanced Beam Cannon Ballistic Gun Light Assault Rifle Build | -11 -10 -9 -9 -8 ------- Run | Yrd Mat Mat Sto Mat Slots Evolved 4 | . . 2 . 2 Power . | . . . . . Propulsion 2 | . . 2 . . Utility 1 | . . . . 1 Weapon 1 | . . . . 1 Parts Attached 33 | 4 7 15 . 7 Power 5 | 1 1 2 . 1 Engine 5 | 1 1 2 . 1 Core . | . . . . . Reactor . | . . . . . Propulsion 14 | 2 2 9 . 1 Treads . | . . . . . Leg 8 | 2 2 4 . . Wheel 3 | . . 2 . 1 Hover . | . . . . . Flight 3 | . . 3 . . Utility 4 | 1 1 . . 2 Device 1 | . . . . 1 Storage 2 | 1 1 . . . Processor 1 | . . . . 1 Hackware . | . . . . . Protection . | . . . . . Artifact . | . . . . . Weapon 10 | . 3 4 . 3 Energy Gun 3 | . . 1 . 2 Energy Cannon 1 | . . . . 1 Ballistic Gun 6 | . 3 3 . . Ballistic Cannon . | . . . . . Launcher . | . . . . . Special Weapon . | . . . . . Impact Weapon . | . . . . . Slashing Weapon . | . . . . . Piercing Weapon . | . . . . . Special Melee Weapon . | . . . . . Unidentified Prototypes 1 | . . . . 1 Parts Lost 14 | . . 9 4 1 Power 4 | . . 2 1 1 Propulsion 7 | . . 5 2 . Utility . | . . . . . Weapon 3 | . . 2 1 . Highest Loss Streak 4 | . . 4 2 1 To Critical Strikes . | . . . . . Average Backups 6 | 4 6 6 7 4 Power . | . 1 . 1 . Propulsion 2 | 2 2 2 2 . Utility 1 | . . 1 1 1 Weapon 2 | 1 2 2 3 2 Tool/Special . | . . . . . Unused Backups 1 | . . . . 1 Power . | . . . . . Propulsion . | . . . . . Utility 1 | . . . . 1 Weapon . | . . . . . Tool/Special . | . . . . . Average Slot Usage (%) 79 | . 96 81 69 49 Engine 8 | . 14 9 2 2 Leg 19 | . 28 17 22 . Wheel 3 | . . 4 . 13 Flight 2 | . . 6 . . Storage 21 | . 25 22 22 10 Energy Gun 3 | . . 1 11 10 Ballistic Gun 17 | . 26 19 11 . Peak Build Rating 14 | 4 7 10 10 14 Average Rating 7 | 2 6 8 8 8 On Entrance 5 | . 4 7 10 5 Avg Prop Armor Cover (%) 4 | . . 4 . . Naked Turns 27 | . . . . 27 Heaviest Build 17 | 8 14 16 16 17 Greatest Support 35 | 20 20 30 30 35 Greatest Overweight (x) 3 | . . 3 1 . Average Overweight (x) . | . . . . . Largest Inventory Capacity 8 | 8 8 8 8 8 Average Capacity 7 | 6 8 8 8 7 Most Carried 8 | 6 8 8 8 8 Average Carried 6 | 4 6 6 7 4 Final Capacity 8 | 8 8 8 8 5 Final Carried 8 | 6 7 7 8 3 Class Distribution -------------------- 67% | Mutant 29% | Scavenger-Mutant 3% | Gunner Dominant Class ---------------- Mutant | -10/Materials Scavenger-Mutant | -9/Materials Mutant | -9/Storage Mutant | -8/Materials Resources | -11 -10 -9 -9 -8 ----------- Run | Yrd Mat Mat Sto Mat Matter Collected 878 | 180 205 389 104 . Remotely . | . . . . . Salvage Created 673 | . 187 382 104 . Parts 52 | . 18 30 4 . Haulers Intercepted . | . . . . . Recyclers Shooed . | . . . . . Parts Field Recycled . | . . . . . Retrieved Matter . | . . . . . Parts Self-Destructed . | . . . . . Prevented . | . . . . . Parts Restored . | . . . . . Kills | -11 -10 -9 -9 -8 ------- Run | Yrd Mat Mat Sto Mat Combat Hostiles Destroyed 20 | . 7 11 2 . Guns 20 | . 7 11 2 . Classes Destroyed 4 | . 3 1 . . Watcher 1 | . 1 . . . Swarmer 9 | . 5 4 . . Grunt 8 | . 2 4 2 . Sentry 3 | . . 3 . . Best Kill Streak 4 | . 4 2 2 . Combat Bots Only 3 | . 3 2 2 . Max Kills in Single Turn 1 | . 1 1 1 . Gunslinging . | . . . . . Exploded . | . . . . . Melee . | . . . . . Uniques/NPCs Destroyed . | . . . . . Combat | -11 -10 -9 -9 -8 -------- Run | Yrd Mat Mat Sto Mat Hostile Shots Fired 265 | . 51 132 40 42 Missed 92 | . 24 39 16 13 Hits 173 | . 27 93 24 29 Melee 1 | . . . . 1 Projectile 172 | . 27 93 24 28 Critical Strikes 5 | . . 1 1 3 Damage Taken 2327 | . 274 1019 330 704 Core 867 | . 50 211 53 553 Absorbed by Shields . | . . . . . Core Remaining (%) 71 | 100 80 . 34 . Volleys Fired 86 | . 24 55 4 3 Largest 3 | . 2 2 2 3 Hottest 174 | . 40 73 73 174 Shots Fired 153 | . 48 92 8 5 Gun 152 | . 48 92 8 4 Cannon 1 | . . . . 1 Launcher . | . . . . . Special . | . . . . . Kinetic 139 | . 48 87 4 . Thermal 14 | . . 5 4 5 Explosive . | . . . . . Electromagnetic . | . . . . . Robot Hit Streak 11 | . 6 11 5 9 Robot Miss Streak 8 | . 2 8 1 . Penetration Max . | . . . . . Secondary Targets 5 | . 2 2 1 . Max Gunslinging Chain 1 | . 1 1 1 . Shots Hit Robots 97 | . 31 54 7 5 Core Hits 39 | . 12 20 5 2 Critical Kills . | . . . . . Critical Parts Destroyed 1 | . . 1 . . Critical Strikes 2 | . . 1 . 1 Burn 1 | . . . . 1 Destroy 1 | . . 1 . . Melee Attacks . | . . . . . Impact . | . . . . . Slashing . | . . . . . Piercing . | . . . . . Sneak Attacks . | . . . . . Combat Hostiles . | . . . . . Follow-up Attacks . | . . . . . Damage Inflicted 1117 | . 342 577 96 102 Guns 1071 | . 342 577 96 56 Cannons 21 | . . . . 21 Explosions . | . . . . . Melee . | . . . . . Ramming 25 | . . . . 25 Kinetic 915 | . 342 527 46 . Thermal 177 | . . 50 50 77 Explosive . | . . . . . Electromagnetic . | . . . . . Impact . | . . . . . Slashing . | . . . . . Piercing . | . . . . . Highest Corruption . | . . . . . Average Corruption . | . . . . . Corruption Purged . | . . . . . Corruption Blocked . | . . . . . Overload Shots . | . . . . . Overflow Damage . | . . . . . Projectiles . | . . . . . Explosions . | . . . . . Melee . | . . . . . Knockbacks . | . . . . . Impact . | . . . . . Kinetic . | . . . . . Secondary . | . . . . . Self-Inflicted Damage 11 | . . . . 11 Shots . | . . . . . Rammed 3 | . . . . 3 Targets Rammed 3 | . . . . 3 Kicked . | . . . . . Crushed . | . . . . . Highest Temperature 99 | . 9 55 80 99 Average Temperature 23 | . 8 13 43 40 Received Heat Transfer 615 | . 87 225 150 153 Siege Activations . | . . . . . Martial Activations . | . . . . . Shielding Activations . | . . . . . Robots Disrupted . | . . . . . Combat Hostiles . | . . . . . Robots Corrupted . | . . . . . Combat Hostiles . | . . . . . Parts Fried . | . . . . . Impact Corruptions . | . . . . . Robots Melted . | . . . . . Combat Hostiles . | . . . . . Parts Melted 1 | . . . 1 . Heat Transferred 555 | . . 148 148 259 Parts Sabotaged . | . . . . . Parts Stolen . | . . . . . Parts Stripped . | . . . . . Power Chain Reactions . | . . . . . Alert | -11 -10 -9 -9 -8 ------- Run | Yrd Mat Mat Sto Mat Maximum Alert Level . | . . . . . Low Security (%) 100 | 100 100 100 100 100 Level 1 . | . . . . . Level 2 . | . . . . . Level 3 . | . . . . . Level 4 . | . . . . . Level 5 . | . . . . . High Security . | . . . . . Max Security . | . . . . . Peak Influence 97 | . 97 67 43 3 Initial 32 | . . 32 19 3 Average 25 | . 37 28 18 . Influence Increases 632 | . 187 331 114 . Destroy 0b10 Robot/C 400 | . 140 220 40 . Destroy 0b10 Robot/NC 5 | . 5 . . . Destroy Leader 82 | . 22 50 10 . Successful Hack 9 | . 5 . 4 . Destroy Structure 1 | . . 1 . . Lose Combat Pursuer 135 | . 15 60 60 . Influence Decreases 632 | . 110 361 151 10 Entered New Map 80 | . . 45 28 7 Time Decay 432 | . 110 226 93 3 Lost Part 120 | . . 90 30 . Squads Dispatched 5 | . . 2 3 . Investigation 1 | . . . 1 . Extermination . | . . . . . Reinforcement 4 | . . 2 2 . Assault . | . . . . . Garrison . | . . . . . Intercept . | . . . . . Searches Triggered . | . . . . . Construction Impeded . | . . . . . Haulers Reinforced . | . . . . . Active Scanning Responses . | . . . . . Cargo Convoy Interrupts . | . . . . . Stealth | -11 -10 -9 -9 -8 --------- Run | Yrd Mat Mat Sto Mat Distress Signals 1 | . . 1 . . Communications Jammed . | . . . . . Distress Signals . | . . . . . Times Spotted 51 | . 17 17 8 9 Peak Tracking Total 9 | . 5 5 4 9 Tactical Retreats 6 | . 1 2 3 . Traps | -11 -10 -9 -9 -8 ------- Run | Yrd Mat Mat Sto Mat Traps Triggered 1 | . . 1 . . Indirectly . | . . . . . Trap Hack Attempts . | . . . . . Triggered . | . . . . . Disarmed . | . . . . . Reprogrammed . | . . . . . Reused . | . . . . . Traps Extracted . | . . . . . Installed . | . . . . . Triggered . | . . . . . Machines | -11 -10 -9 -9 -8 ---------- Run | Yrd Mat Mat Sto Mat Machines Disabled . | . . . . . Max in Single Turn . | . . . . . Machines Repaired . | . . . . . Machines Dismantled . | . . . . . Machines Sabotaged . | . . . . . Overloaded Fab Kills . | . . . . . Hacking | -11 -10 -9 -9 -8 --------- Run | Yrd Mat Mat Sto Mat Machines Accessed 5 | . 3 . 2 . Terminals 5 | . 3 . 2 . Fabricators . | . . . . . Repair Stations . | . . . . . Recycling Units . | . . . . . Scanalyzers . | . . . . . Garrison Access . | . . . . . Total Hacks 8 | . 4 . 4 . Successful 2 | . 1 . 1 . Failed 6 | . 3 . 3 . Catastrophic 3 | . 1 . 2 . Database Lockouts . | . . . . . Manual 1 | . 1 . . . Terminals 8 | . 4 . 4 . Fabricators . | . . . . . Repair Stations . | . . . . . Recycling Units . | . . . . . Scanalyzers . | . . . . . Garrison Access . | . . . . . Terminal Hacks 2 | . 1 . 1 . Open Door 1 | . . . 1 . Terminal Index 1 | . 1 . . . Fabricator Hacks . | . . . . . Repair Station Hacks . | . . . . . Recycling Unit Hacks . | . . . . . Scanalyzer . | . . . . . Garrison Access Hacks . | . . . . . Unauthorized Hacks . | . . . . . Terminals . | . . . . . Fabricators . | . . . . . Repair Stations . | . . . . . Recycling Units . | . . . . . Scanalyzers . | . . . . . Garrison Access . | . . . . . Data Cores Recovered . | . . . . . Used . | . . . . . Hacking Detections 4 | . 2 . 2 . Full Trace Events 1 | . . . 1 . Feedback Events . | . . . . . Feedback Blocked . | . . . . . Robot Schematics Acquired . | . . . . . Robots Built . | . . . . . Authchips . | . . . . . Time . | . . . . . Total Robot Build Rating . | . . . . . Part Schematics Acquired . | . . . . . Parts Built . | . . . . . Authchips . | . . . . . Time . | . . . . . Total Part Build Rating . | . . . . . Part Studies Acquired . | . . . . . Parts Repaired . | . . . . . Time . | . . . . . Parts Recycled . | . . . . . Recycled Matter . | . . . . . Retrieved Matter . | . . . . . Retrieved Components . | . . . . . Parts Scanalyzed . | . . . . . Part Schematics Acquired . | . . . . . Parts Damaged . | . . . . . Bothacking | -11 -10 -9 -9 -8 ------------ Run | Yrd Mat Mat Sto Mat Used RIF Installer . | . . . . . Robots Hacked . | . . . . . Non-combat . | . . . . . Combat . | . . . . . Robot Hacks Applied . | . . . . . Relay Couplers Released . | . . . . . Fabnet Peak Effective % . | . . . . . Robots Rewired . | . . . . . Allies Hacked . | . . . . . Hacks Repelled . | . . . . . Allies | -11 -10 -9 -9 -8 -------- Run | Yrd Mat Mat Sto Mat Total Allies . | . . . . . Largest Group . | . . . . . Highest-Rated Group . | . . . . . Highest-Rated Ally . | . . . . . Total Orders . | . . . . . Ally Attacks . | . . . . . Total Damage . | . . . . . Kills . | . . . . . Allies Corrupted . | . . . . . Allies Melted . | . . . . . Intel | -11 -10 -9 -9 -8 ------- Run | Yrd Mat Mat Sto Mat Active Infowar (turns) . | . . . . . Robot Analysis Total . | . . . . . Derelict Logs Recovered . | . . . . . Drone Launches . | . . . . . Drone Recoveries . | . . . . . Exploration | -11 -10 -9 -9 -8 ------------- Run | Yrd Mat Mat Sto Mat Turns Passed 1249 | 51 323 524 218 133 Spaces Moved 764 | 38 187 266 162 111 Core 61 | 11 . 2 . 48 Treads . | . . . . . Legs 556 | 27 187 180 162 . Wheels 85 | . . 22 . 63 Hover . | . . . . . Flight 62 | . . 62 . . Fastest Speed 50 | 50 120 80 120 50 Average Speed 114 | 99 120 121 127 72 Slowest Speed 280 | 120 120 280 190 90 Overloaded Moves . | . . . . . Propulsion Burnouts . | . . . . . Robots Hopped . | . . . . . Potential Cave-ins . | . . . . . Cave-ins Triggered . | . . . . . Exploration Rate (%) 19 | 4 24 19 32 20 Regions Visited 4 Branch Regions 1 Pre-discovered Areas . | . . . . . Known Exits Taken . | . . . . . Unknown Exits Taken 4 | 1 1 1 1 . Scrap Searched . | . . . . . Spaces Dug . | . . . . . Terrain Destroyed . | . . . . . Melee . | . . . . . Projectile . | . . . . . AOE . | . . . . . Terrain Rammed . | . . . . . Walls Destroyed . | . . . . . Machines Disabled . | . . . . . Actions | -11 -10 -9 -9 -8 --------- Run | Yrd Mat Mat Sto Mat Total 1010 | 50 243 391 166 160 Wait 85 | . 15 40 . 30 Move 760 | 37 186 265 161 111 Hop . | . . . . . Pick Up 26 | 9 7 8 1 1 Fast Attach 5 | 1 . 4 . . Attach 25 | 3 4 10 . 8 Detach 4 | . . 2 . 2 Swap 7 | . 3 3 . 1 Drop 9 | . 4 4 . 1 Fire 86 | . 24 55 4 3 Melee . | . . . . . Ram 3 | . . . . 3 Kick . | . . . . . Crush . | . . . . . Escape Stasis . | . . . . . Rewire . | . . . . . Trap . | . . . . . Miscellaneous . | . . . . . Route ------- -11/Scrapyard -10/Materials -9/Materials -9/Storage -8/Materials History --------- Turn | Location | Event 5 | -11/Scrapyard | Discovered new exit (range 15) 52 | -11/Scrapyard | Entered Materials 318 | -10/Materials | Build established: Mutant 371 | -10/Materials | Discovered new exit (range 3) 375 | -10/Materials | Entered another Materials area 375 | -9/Materials | Evolved 2 slots: Propulsion x2 576 | -9/Materials | Lost 4 parts (1p2n1w) 829 | -9/Materials | Core integrity fell below 50% 865 | -9/Materials | Lost 4 parts (1p2n1w) 884 | -9/Materials | Discovered new exit (range 7) 899 | -9/Materials | Entered Storage 1111 | -9/Storage | Discovered new exit (range 5) 1117 | -9/Storage | Entered Materials 1117 | -8/Materials | Evolved 2 slots: Utility x1, Weapon x1 1223 | -8/Materials | Released all parts (7) 1245 | -8/Materials | Core integrity fell below 50% 1249 | -8/Materials | Core integrity fell below 20% 1250 | -8/Materials | Destroyed by Y-45 Defender with Beam Rifle Last Messages --------------- Y-45 Defender suffers critical hit (Burn). Ion Engine destroyed. Wheel severed. Released Adv. Beam Cannon. Released Med. Laser. Released Beam Rifle. Released Signal Interpreter. Released Com. Wheel. Released Sml. Storage Unit. Released Adv. Weight Redist. System. [Achievement: Live, Flee, And Rebuild] Slammed into G-47 Trooper. [Achievement: For Emergencies Only] Critical hit (Burn: +37). Penetrated by Slug. Knocked back. Slammed into W-25 Informer. Destabilizing: Core damaged (-22). Knocked back. Slammed into W-25 Informer. Map ----- +----------------------------------------------------+ | # + ########################??????# ! | | # ## ?????##### | | # ]############ ?????????? | | # #??????????# ?????????? | | #########??????????+ ############???????????? | | ???????????????????# #??????????????????????? | | ???????????????????# #??#########???????????? | | ??????????????????#" ##? #???????????? | | ??????????????????# # #???????????? | | ??????????????????# # ] ! #???????????? | | ??????????????????# Y% + #???????????? | | ??????????????????# # "" #???????????? | | ??????????????????# # !! """#???????????? | | ??????????????????## Y##? !! S"????????????? | | ???????????????????# #?? ! #???????????? | | ???????????????????#% #??? #######???????????? | | ???????????????????# #???##?????????????????? | | ????????????#####??# #??????????????????????? | | ???????????""" ""??# #????"?????????????????? | | ?????????? """ """?# #??""""????????????????? | | ?????????# """ """?# %%# """"" #????????????? | | ?????????# # w + #????????????? | | ?????????# # # #????????????? | | ?????????# t/ #?? = #????????????? | | ?????????# # #????* #????????????? | | ?????????# #% @#?????? =#????????????? | | ?????????#########?# #????????##????????????? | | ??????????????????# #?????????????????????? | | ????????????????? #?????????????????????? | | ??????????????? H #?????????????????????? | | ?????????????? k ?????????????????????? | | ?????????????##a ## ????????????????????? | | ??????????????# ?##### ???????????????????? | | ??????????????# ??????? ###???????????????????? | | ??????????????# ??????? #?????????????????????? | | ??????????????????????? #?????????????????????? | | ??????????????????????? #?????????????????????? | | ??????????????????????? #?????????????????????? | | ??????????????????????? ??????????????????????? | | ??????????????????????? ??????????????????????? | | ??????????????????????????????????????????????? | | ??????????????????????????????????????????????? | | ??????????????????????????????????????????????? | | ??????????????????????????????????????????????? | | ??????????????????????????????????????????????? | | ??????????????????????????????????????????????? | | ??????????????????????????????????????????????? | | ??????????????????????????????????????????????? | | ??????????????????????????????????????????????? | | ??????????????????????????????????????????????? | +----------------------------------------------------+ Best States ------------- Heat Dissipation 31 Energy Generation 10 Energy Capacity 250 Matter Stores 450 Matter Capacity 450 Sight Range 16 Terrain Scan Density 10 Additional Mass Support 9 Evasion (%) 55 Item Schematics ----------------- None Robot Schematics ------------------ None Fabricated ------------ Nothing Repaired ---------- Nothing Studied --------- None Alien Tech Used ----------------- None Achievements -------------- DATA ERROR: Steam Global Achievement% For Emergencies Only Live, Flee, And Rebuild There's More Where That Came From Challenges ------------ None Game ------ Seed AluminumExpertSteel Manual? 0 Play Time 00:21:26 Cumulative 40.3 hours Start 2025.10.22 @ 20:15:46 End 2025.10.22 @ 21:25:28 Sessions 1 Manual Loads 0 Difficulty Rogue Special Mode None Game No. 68 Rogue 66 Adventurer 0 Explorer 2 Win Type - Total 0 Types 0/0/0/0/0/0/0/0/0/0 Lore% 24 Gallery% 27 Achievement% 16 Wizard Run 0 Options --------- Layout 1 ASCII 0 Keyboard 0 Movement Mouse Keybinds 0 Fullscreen 1 Font 24/Smallcaps Map View 50x35 Zoom Use 0% Tactical HUD 0 Map Filters NONE Filters NONE Steam 1 RUN: 2e14abf2-2cdc-4132-82f8-2446a1dc3b44